bitfinex/quotes_SOLUSD_20250908
["timestamp","ask_amount","ask_price","bid_price","bid_amount"]
[1757372028404,0.06,214.58,214.57,36.34]
[1757372029094,8.19572189,214.58,214.57,36.34]
[1757372030102,3.53545533,214.58,214.57,36.34]
[1757372030305,3.53545533,214.58,214.57,37.05]
[1757372031612,8.19572189,214.58,214.57,36.34]
[1757372031817,3.53545533,214.58,214.57,37.05]
[1757372033213,0.06,214.58,214.57,37.05]
[1757372033609,0.06,214.58,214.57,41.71048375]
[1757372034005,0.06,214.58,214.57,45.45723478]
[1757372034317,0.06,214.58,214.57,46.01649283]
[1757372035520,0.06,214.61,214.57,46.01649283]
[1757372035521,0.06,214.61,214.6,26.0]
[1757372035704,0.06,214.61,214.6,62.2]
[1757372035905,0.06,214.61,214.6,62.91]
[1757372036214,0.06,214.63,214.6,62.91]
[1757372036411,0.06,214.63,214.61,0.71]
[1757372037413,0.06,214.63,214.62,4.659398]
[1757372037717,0.06,214.63,214.6,26.0]
[1757372037914,0.75,214.63,214.61,36.22]
[1757372038120,0.06,214.63,214.62,36.22]
[1757372039724,0.06,214.63,214.62,36.24]
[1757372041427,0.75,214.63,214.62,36.24]
[1757372042432,0.75,214.63,214.62,36.22]
[1757372042613,0.06,214.63,214.62,36.22]
[1757372044613,0.75,214.63,214.62,36.2]
[1757372044807,3.50305889,214.63,214.62,36.2]
[1757372045336,3.50305889,214.63,214.54,0.71]
[1757372045337,13.59559401,214.62,214.54,0.71]
[1757372045510,2.75305889,214.59,214.55,36.22]
[1757372045832,0.69,214.58,214.55,36.22]
[1757372046539,2.75305889,214.59,214.53,0.74]
[1757372046739,0.69,214.57,214.53,0.03]
[1757372047035,3.44305889,214.57,214.54,33.1]
[1757372047233,2.75305889,214.57,214.54,33.1]
[1757372047429,0.69,214.56,214.54,33.1]
[1757372047633,0.69,214.55,214.54,33.1]
[1757372047847,5.3509182,214.55,214.54,33.1]
[1757372048229,5.3509182,214.55,214.54,36.22]
[1757372050037,21.6995711,214.55,214.54,36.22]
[1757372051942,21.6995711,214.55,214.53,0.03]
[1757372052133,21.6995711,214.55,214.54,36.22]
[1757372053846,21.6995711,214.55,214.53,0.03]
[1757372054145,21.0095711,214.55,214.54,36.2]
[1757372054546,18.92651221,214.55,214.54,36.2]
[1757372054720,21.6795711,214.55,214.54,36.2]
[1757372055150,18.92651221,214.55,214.54,36.2]
[1757372055364,21.6795711,214.55,214.54,36.2]
[1757372060531,21.6795711,214.55,214.54,36.16]
[1757372068953,21.0095711,214.55,214.54,36.16]
[1757372069542,21.6795711,214.55,214.54,36.16]
[1757372069930,21.0095711,214.55,214.54,36.16]
[1757372071238,18.25651221,214.55,214.54,36.16]
[1757372071439,21.0095711,214.55,214.54,36.16]
[1757372072440,22.55802284,214.55,214.54,36.16]
[1757372072651,18.25651221,214.55,214.54,36.16]
[1757372072940,22.55802284,214.55,214.54,36.16]
[1757372076269,4.66072109,214.56,214.54,36.82]
[1757372076470,18.2563151,214.56,214.55,0.66]
[1757372076852,4.66072109,214.56,214.55,0.66]
[1757372079550,139.160505,214.57,214.55,0.66]
[1757372080467,139.160505,214.57,214.55,0.68]
[1757372082162,139.160505,214.57,214.54,36.19]
[1757372082355,139.160505,214.57,214.55,0.68]
[1757372082673,139.160505,214.57,214.56,0.68]
[1757372082875,134.5,214.57,214.56,0.68]
[1757372086257,4.65985869,214.6,214.56,0.68]
[1757372086572,0.06,214.61,214.56,0.68]
[1757372087462,3.52181424,214.61,214.56,0.68]
[1757372087946,8.18157428,214.61,214.56,0.68]
[1757372088150,4.71976004,214.61,214.56,0.68]
[1757372089064,0.06,214.61,214.56,0.68]
[1757372089376,3.46347396,214.6,214.56,0.68]
[1757372090185,8.12339653,214.6,214.56,0.68]
[1757372090385,4.65992257,214.6,214.56,0.68]
[1757372091788,4.71961511,214.61,214.56,0.68]
[1757372091970,3.4671641,214.6,214.56,0.68]
[1757372092166,5.37961511,214.61,214.56,0.68]
[1757372092367,3.46716439,214.6,214.56,0.68]
[1757372093686,8.12712058,214.6,214.56,0.68]
[1757372093990,4.65995619,214.6,214.56,0.68]
[1757372094986,4.65995619,214.6,214.55,4.66079401]
[1757372095193,4.65995619,214.6,214.57,0.68]
[1757372095503,0.66,214.6,214.57,0.68]
[1757372095692,4.12596263,214.6,214.57,0.68]
[1757372096395,4.12596263,214.6,214.54,36.19]
[1757372096593,22.02306727,214.59,214.54,0.03]
[1757372096776,18.55710464,214.59,214.55,35.98]
[1757372097109,20.67016352,214.61,214.56,0.68]
[1757372097402,4.12569354,214.6,214.56,0.68]
[1757372097587,4.66004939,214.59,214.56,0.68]
[1757372097774,4.66004939,214.59,214.56,0.71]
[1757372097976,5.32004939,214.59,214.56,0.71]
[1757372098784,4.66004939,214.59,214.56,0.03]
[1757372098986,4.96151063,214.58,214.57,35.98]
[1757372099199,0.66,214.58,214.57,35.98]
[1757372099577,4.66004939,214.59,214.57,35.98]
[1757372099802,4.66004939,214.59,214.58,0.68]
[1757372100290,0.06,214.61,214.58,0.68]
[1757372100593,4.71968056,214.61,214.58,0.68]
[1757372101800,0.72,214.61,214.57,35.98]
[1757372101995,0.72,214.61,214.56,0.03]
[1757372101996,4.96151063,214.6,214.56,0.03]
[1757372102173,4.30151063,214.59,214.57,35.98]
[1757372102370,0.66,214.58,214.57,35.98]
[1757372103093,4.96151063,214.58,214.56,0.03]
[1757372103305,0.66,214.58,214.57,35.98]
[1757372103476,4.96151063,214.58,214.57,35.98]
[1757372103877,13.08545896,214.58,214.57,35.98]
[1757372109906,13.59559401,214.57,214.56,0.03]
[1757372110083,21.36078641,214.57,214.56,0.03]
[1757372110288,48.04113548,214.57,214.56,0.03]
[1757372111381,48.04113548,214.57,214.52,0.03]
[1757372111382,26.0,214.54,214.52,0.03]
[1757372111588,17.89710464,214.53,214.52,35.59]
[1757372111790,18.57710464,214.53,214.52,35.59]
[1757372112190,23.23845736,214.53,214.52,35.59]
[1757372115510,23.23845736,214.53,214.52,0.03]
[1757372118388,26.69999521,214.53,214.52,0.03]
[1757372125207,39.59559401,214.51,214.5,0.03]
[1757372125391,43.05713186,214.51,214.5,0.03]
[1757372125593,48.03864249,214.51,214.5,0.03]
[1757372126214,52.70042981,214.51,214.5,0.03]
[1757372129905,57.00194044,214.51,214.5,0.03]
[1757372130227,61.76390491,214.51,214.5,0.03]
[1757372131298,57.46239428,214.51,214.5,0.03]
[1757372131819,48.55889196,214.51,214.5,0.7]
[1757372134322,47.01132622,214.51,214.5,0.7]
[1757372135330,47.01132622,214.51,214.5,0.03]
[1757372136636,44.25738133,214.51,214.5,0.03]
[1757372136807,47.01132622,214.51,214.5,0.03]
[1757372139734,44.25738133,214.51,214.5,0.03]
[1757372139914,47.01132622,214.51,214.5,0.03]
[1757372141735,50.46094731,214.51,214.5,0.03]
[1757372145632,50.46094731,214.51,214.5,0.74]
[1757372145824,0.06,214.53,214.5,0.74]
[1757372147133,0.06,214.53,214.51,4.66178732]
[1757372147331,0.06,214.53,214.52,36.0]
[1757372147534,0.06,214.53,214.52,36.71]
[1757372154326,0.06,214.53,214.52,35.98]
[1757372154844,0.06,214.53,214.52,36.69]
[1757372158125,0.06,214.53,214.52,35.98]
[1757372159049,0.06,214.53,214.52,36.69]
[1757372166459,0.06,214.53,214.52,41.35157001]
[1757372167951,0.06,214.53,214.52,36.69]
[1757372170850,0.06,214.53,214.51,0.03]
[1757372171162,0.72,214.53,214.52,35.98]
[1757372173049,5.38135272,214.53,214.52,35.98]
[1757372173668,5.38135272,214.53,214.51,0.03]
[1757372173841,8.13529761,214.53,214.52,35.98]
[1757372175640,39.59559401,214.49,214.48,0.03]
[1757372175844,45.80226477,214.49,214.48,0.03]
[1757372176057,46.46226477,214.49,214.48,0.03]
[1757372176677,48.32815398,214.49,214.48,0.03]
[1757372176962,52.99037599,214.49,214.48,0.03]
[1757372180443,52.98738541,214.49,214.48,0.03]
[1757372182845,50.23344052,214.49,214.48,0.03]
[1757372183061,52.98738541,214.49,214.48,0.03]
[1757372183665,18.25781602,214.49,214.48,0.74]
[1757372183873,21.01176091,214.49,214.48,0.74]
[1757372184941,4.66190104,214.51,214.48,0.74]
[1757372185143,11.71338181,214.53,214.48,0.74]
[1757372185144,2.81394489,214.53,214.48,0.74]
[1757372185445,4.66161486,214.52,214.48,0.74]
[1757372185644,13.65559401,214.53,214.48,0.74]
[1757372185875,18.31698596,214.53,214.48,0.74]
[1757372186367,21.07093085,214.53,214.48,0.74]
[1757372186763,2.75394489,214.52,214.49,36.04]
[1757372186962,4.66178732,214.51,214.49,36.04]
[1757372187566,4.66178732,214.51,214.49,36.75]
[1757372188063,4.66178732,214.51,214.5,36.04]
[1757372189470,4.66178732,214.51,214.5,36.02]
[1757372189664,4.66178732,214.51,214.5,36.73]
[1757372193760,0.06,214.53,214.5,36.73]
[1757372193963,0.06,214.53,214.51,0.71]
[1757372194178,4.72135283,214.53,214.51,0.71]
[1757372194365,4.72135283,214.53,214.52,0.71]
[1757372194563,7.47529772,214.53,214.5,36.73]
[1757372194761,7.47529772,214.53,214.51,0.71]
[1757372195453,7.47529772,214.53,214.5,36.02]
[1757372195656,7.47529772,214.53,214.5,36.73]
[1757372196374,9.02296978,214.53,214.5,36.73]
[1757372196570,4.72135283,214.53,214.51,0.71]
[1757372197170,4.72135283,214.53,214.52,0.71]
[1757372198359,4.72135283,214.53,214.5,36.73]
[1757372199656,4.72135283,214.53,214.51,0.71]
[1757372200467,4.72135283,214.53,214.52,0.7]
[1757372202262,0.06,214.53,214.52,0.7]
[1757372204363,0.06,214.53,214.5,36.75]
[1757372204583,0.06,214.53,214.51,0.7]
[1757372204766,5.04161695,214.53,214.5,0.03]
[1757372204969,4.30161695,214.52,214.51,35.98]
[1757372205480,4.98161695,214.52,214.5,0.03]
[1757372205678,5.34157001,214.52,214.51,35.98]
[1757372205879,9.64318696,214.52,214.51,35.98]
[1757372206881,4.66157001,214.52,214.51,35.98]
[1757372209975,4.66157001,214.52,214.51,36.68]
[1757372211081,4.72135272,214.53,214.51,36.68]
[1757372211269,4.72135272,214.53,214.52,0.7]
[1757372213481,4.72135272,214.53,214.51,35.98]
[1757372213680,4.72135272,214.53,214.51,36.68]
[1757372214082,4.72135272,214.53,214.52,0.7]
[1757372215384,4.72135272,214.53,214.51,35.98]
[1757372215589,4.72135272,214.53,214.51,36.68]
[1757372216592,4.72135272,214.53,214.52,0.7]
[1757372217289,0.06,214.53,214.52,0.7]
[1757372218697,0.06,214.53,214.52,5.36157001]
[1757372219495,0.06,214.53,214.52,0.7]
[1757372222673,0.06,214.53,214.52,35.98]
[1757372222878,0.06,214.53,214.52,36.68]
[1757372227688,0.06,214.53,214.52,35.98]
[1757372229192,0.06,214.53,214.5,0.73]
[1757372229395,0.74,214.53,214.51,35.98]
[1757372229582,0.06,214.53,214.51,35.98]
[1757372229778,0.06,214.53,214.52,35.96]
[1757372230878,0.06,214.53,214.52,36.64]
[1757372232402,0.06,214.53,214.52,35.96]
[1757372232698,0.75,214.53,214.52,35.96]
[1757372233396,0.06,214.53,214.52,35.96]
[1757372233893,0.06,214.53,214.52,36.64]
[1757372234799,0.06,214.53,214.52,35.96]
[1757372235193,0.06,214.53,214.52,36.64]
[1757372246715,0.06,214.53,214.52,41.30157001]
[1757372249423,0.06,214.53,214.52,36.64]
[1757372250724,0.06,214.53,214.52,41.30157001]
[1757372251920,0.06,214.53,214.52,36.64]
[1757372253724,0.06,214.53,214.52,41.30157001]
[1757372265043,0.06,214.53,214.52,43.1656332]
[1757372269240,0.06,214.55,214.54,26.0]
[1757372269441,0.06,214.55,214.54,62.49933625]
[1757372269646,0.06,214.55,214.54,63.18933625]
[1757372270245,0.06,214.55,214.54,67.8504717]
[1757372270634,0.06,214.55,214.54,69.71444802]
[1757372282251,0.06,214.55,214.54,33.77444802]
[1757372282449,0.06,214.55,214.54,69.71444802]
[1757372289559,0.06,214.55,214.54,33.77444802]
[1757372289861,0.06,214.55,214.54,69.69444802]
[1757372290056,0.72,214.55,214.54,31.2204717]
[1757372290264,0.72,214.55,214.54,67.1404717]
[1757372291865,0.06,214.55,214.54,67.1404717]
[1757372296549,0.06,214.55,214.54,67.8604717]
[1757372297154,0.06,214.55,214.54,67.1404717]
[1757372297552,0.06,214.55,214.54,67.8604717]
[1757372298051,0.06,214.55,214.54,69.00436117]
[1757372302376,0.74,214.55,214.54,33.08436117]
[1757372302577,0.74,214.55,214.54,69.00436117]
[1757372302772,0.06,214.55,214.54,33.08436117]
[1757372303094,0.74,214.55,214.54,67.1404717]
[1757372303778,0.06,214.55,214.54,67.1404717]
[1757372304281,0.06,214.55,214.54,67.8604717]
[1757372304478,0.06,214.55,214.54,69.72453489]
[1757372304858,4.6594648,214.62,214.54,69.72453489]
[1757372305162,4.6594648,214.62,214.54,66.58113545]
[1757372306269,0.06,214.55,214.54,67.30113545]
[1757372307661,0.06,214.55,214.54,31.38113545]
[1757372307858,0.06,214.55,214.54,66.56113545]
[1757372308268,0.06,214.55,214.54,67.28113545]
[1757372308470,0.06,214.55,214.54,66.56113545]
[1757372308876,0.06,214.55,214.54,67.28113545]
[1757372311969,0.06,214.55,214.53,4.6894648]
[1757372311970,0.74,214.55,214.53,4.6894648]
[1757372312175,0.68,214.54,214.53,4.6894648]
[1757372312481,0.68,214.54,214.53,35.93]
[1757372316889,0.06,214.55,214.53,35.93]
[1757372317091,0.74,214.55,214.53,35.93]
[1757372318196,0.74,214.55,214.54,35.9]
[1757372319893,0.06,214.55,214.54,35.9]
[1757372320089,0.74,214.55,214.54,35.9]
[1757372320398,0.06,214.55,214.54,35.9]
[1757372323680,0.06,214.55,214.54,35.93]
[1757372324295,0.06,214.55,214.54,40.59113545]
[1757372324502,0.06,214.55,214.54,41.25113545]
[1757372324690,0.06,214.55,214.54,47.77553201]
[1757372325395,0.06,214.55,214.54,73.77553201]
[1757372333001,0.06,214.55,214.54,47.09553201]
[1757372333200,0.06,214.55,214.54,47.75553201]
[1757372334195,0.06,214.55,214.54,11.87553201]
[1757372334502,0.06,214.55,214.54,73.75553201]
[1757372342488,0.74,214.55,214.54,0.03]
[1757372342692,0.74,214.55,214.54,35.91]
[1757372344206,5.4009182,214.55,214.54,35.91]
[1757372346094,0.74,214.55,214.54,35.91]
[1757372346502,0.06,214.55,214.54,35.91]
[1757372347400,0.06,214.55,214.54,36.57]
[1757372347593,0.06,214.55,214.54,41.23113545]
[1757372347794,0.06,214.55,214.54,43.09563308]
[1757372357221,0.06,214.55,214.54,7.21563308]
[1757372357408,0.06,214.55,214.54,43.09563308]
[1757372358203,0.06,214.55,214.54,7.21563308]
[1757372358417,0.06,214.55,214.54,43.09563308]
[1757372370022,0.06,214.58,214.57,26.0]
[1757372370224,0.06,214.58,214.57,61.86]
[1757372370423,0.06,214.58,214.57,67.22048375]
[1757372370623,0.06,214.58,214.57,69.08419954]
[1757372372731,0.06,214.58,214.57,67.22048375]
[1757372376038,0.06,214.58,214.57,66.52048375]
[1757372383755,0.06,214.58,214.57,66.50048375]
[1757372390249,0.06,214.58,214.57,67.20048375]
[1757372390832,0.06,214.58,214.57,31.36048375]
[1757372391032,0.06,214.58,214.57,67.20048375]
[1757372391848,0.06,214.58,214.57,31.36048375]
[1757372392042,0.06,214.58,214.57,67.20048375]
[1757372398246,0.06,214.58,214.57,66.50048375]
[1757372398949,0.06,214.58,214.57,67.20048375]
[1757372400654,0.06,214.6,214.59,26.0]
[1757372400826,0.06,214.6,214.59,62.39920592]
[1757372401027,0.05999981,214.63,214.59,63.09920592]
[1757372401248,0.06,214.64,214.6,0.7]
[1757372401439,0.06,214.64,214.63,26.0]
[1757372401748,0.06,214.64,214.63,62.54]
[1757372402660,0.06,214.64,214.63,67.19918091]
[1757372404049,0.06,214.64,214.63,30.65918091]
[1757372404240,0.06,214.64,214.63,66.49918091]
[1757372404441,0.06,214.64,214.63,61.84]
[1757372404844,0.74,214.64,214.63,26.0]
[1757372405048,0.74,214.64,214.6,4.65973222]
[1757372405251,0.68,214.63,214.61,35.82]
[1757372405561,0.68,214.62,214.58,26.0]
[1757372405757,0.68,214.61,214.58,26.0]
[1757372405955,0.68,214.6,214.59,35.82]
[1757372407255,0.68,214.61,214.59,35.82]
[1757372407753,4.65938523,214.63,214.55,31.39071033]
[1757372407754,0.68,214.6,214.55,31.39071033]
[1757372408052,0.68,214.6,214.56,36.52]
[1757372408250,0.06,214.64,214.59,26.0]
[1757372408458,0.06,214.64,214.6,35.82]
[1757372408958,0.06,214.64,214.61,5.35957585]
[1757372409154,0.06,214.64,214.62,35.82]
[1757372409360,0.06,214.64,214.62,36.52]
[1757372409571,0.06,214.64,214.63,0.7]
[1757372411037,0.06,214.64,214.63,4.65918091]
[1757372411945,0.06,214.64,214.62,35.82]
[1757372412352,0.06,214.64,214.63,0.71]
[1757372412833,0.06,214.64,214.63,5.36918091]
[1757372413061,0.06,214.64,214.63,4.65918091]
[1757372413262,0.06,214.64,214.63,35.82]
[1757372414752,0.06,214.64,214.61,30.65955258]
[1757372414962,0.06,214.64,214.63,35.82]
[1757372415465,0.06,214.64,214.63,41.18918091]
[1757372416045,0.06,214.64,214.63,40.47918091]
[1757372416959,0.06,214.64,214.63,35.82]
[1757372418062,0.06,214.64,214.62,4.6592943]
[1757372418281,0.68,214.63,214.58,0.74]
[1757372418746,0.06,214.64,214.59,36.53]
[1757372419063,0.74,214.64,214.59,36.53]
[1757372419367,0.74,214.64,214.6,0.71]
[1757372419572,0.74,214.64,214.61,35.82]
[1757372419769,0.06,214.64,214.61,35.82]
[1757372419948,0.06,214.64,214.62,0.71]
[1757372420148,0.06,214.64,214.63,35.82]
[1757372423871,0.06,214.64,214.63,36.53]
[1757372424864,0.06,214.64,214.63,41.18918091]
[1757372426772,0.06,214.64,214.63,41.21918091]
[1757372427150,0.06,214.64,214.63,40.50918091]
[1757372427355,0.06,214.64,214.63,41.21918091]
[1757372428564,0.06,214.64,214.63,41.77828261]
[1757372430364,0.06,214.67,214.66,26.0]
[1757372430572,0.06,214.68,214.66,61.82]
[1757372430885,0.19011391,214.72,214.67,0.71]
[1757372431088,0.19011391,214.72,214.71,26.0]
[1757372431272,0.19011391,214.72,214.71,62.53]
[1757372431473,0.19011391,214.72,214.71,67.18744492]
[1757372432075,0.19011391,214.72,214.71,66.47744492]
[1757372432470,0.19011391,214.72,214.71,67.18744492]
[1757372433209,0.19011391,214.72,214.71,66.47744492]
[1757372433361,0.19011391,214.72,214.71,26.0]
[1757372433693,0.87011391,214.72,214.71,35.8]
[1757372434000,0.19011391,214.72,214.71,35.8]
[1757372436378,0.87011391,214.72,214.71,35.8]
[1757372437087,0.19011391,214.72,214.71,35.8]
[1757372439768,0.87011391,214.72,214.66,26.0]
[1757372439971,8.27676288,214.72,214.67,35.8]
[1757372440167,0.66,214.71,214.67,35.8]
[1757372441094,0.66,214.71,214.64,31.3689526]
[1757372441304,0.66,214.71,214.65,35.8]
[1757372441472,7.40705449,214.7,214.62,4.65921463]
[1757372441792,2.74939264,214.68,214.64,35.8]
[1757372442193,3.40939264,214.68,214.64,35.8]
[1757372442390,4.29554207,214.68,214.64,35.8]
[1757372442568,0.66,214.67,214.64,35.8]
[1757372442773,4.65852976,214.66,214.64,35.8]
[1757372442973,5.3183239,214.67,214.64,35.8]
[1757372443177,8.95363093,214.69,214.64,35.8]
[1757372443500,9.61363093,214.69,214.64,35.8]
[1757372444091,5.31808886,214.69,214.64,35.8]
[1757372444292,9.61363093,214.69,214.64,35.8]
[1757372444776,9.61363093,214.69,214.64,36.46]
[1757372445096,9.61363093,214.69,214.64,36.49]
[1757372445486,4.65766185,214.7,214.65,0.66]
[1757372445794,134.5,214.71,214.66,0.66]
[1757372445973,134.5,214.71,214.67,35.8]
[1757372446302,139.1575004,214.71,214.67,36.46]
[1757372446474,4.95554207,214.7,214.64,0.03]
[1757372446673,4.29554207,214.69,214.65,35.8]
[1757372446890,4.95554207,214.69,214.65,35.8]
[1757372447592,4.65809577,214.68,214.65,35.8]
[1757372449780,4.65809577,214.68,214.65,36.46]
[1757372450172,134.5,214.71,214.66,0.66]
[1757372452888,134.5,214.71,214.66,5.31833836]
[1757372453088,134.5,214.71,214.67,0.66]
[1757372453290,134.5,214.71,214.68,36.46]
[1757372460496,0.19011391,214.72,214.69,0.66]
[1757372460897,5.5073463,214.72,214.68,35.8]
[1757372461084,4.8473463,214.72,214.68,36.46]
[1757372461285,4.29554207,214.7,214.64,0.03]
[1757372461508,8.95361146,214.69,214.65,35.8]
[1757372461686,0.66,214.68,214.65,35.8]
[1757372461893,0.66,214.67,214.65,35.8]
[1757372462208,5.31806939,214.69,214.65,35.83]
[1757372462413,0.66,214.68,214.65,35.83]
[1757372463207,5.31823335,214.68,214.65,35.83]
[1757372464401,4.65823335,214.68,214.65,35.83]
[1757372464704,8.95345144,214.69,214.65,0.69]
[1757372464910,9.61345144,214.69,214.66,35.8]
[1757372465217,9.61345144,214.69,214.67,35.8]
[1757372465389,9.61345144,214.69,214.65,0.03]
[1757372465584,5.31790937,214.69,214.65,0.03]
[1757372465791,5.31790937,214.69,214.66,35.8]
[1757372466007,5.31790937,214.69,214.67,35.8]
[1757372466306,4.65790937,214.69,214.68,35.8]
[1757372466997,13.59559401,214.68,214.65,0.03]
[1757372467199,4.29554207,214.66,214.65,0.03]
[1757372467403,4.29554207,214.66,214.65,31.93]
[1757372467813,4.95554207,214.66,214.65,31.93]
[1757372468402,9.61407183,214.66,214.65,31.93]
[1757372470116,8.95407183,214.66,214.65,31.93]
[1757372472017,9.63407183,214.66,214.65,31.93]
[1757372473921,8.95407183,214.66,214.65,31.93]
[1757372477618,5.33852976,214.66,214.65,0.03]
[1757372477821,9.63407183,214.66,214.65,35.83]
[1757372478526,23.22966584,214.66,214.65,0.03]
[1757372478708,23.22966584,214.66,214.65,35.83]
[1757372479235,26.69837128,214.66,214.65,0.03]
[1757372479416,26.69837128,214.66,214.65,21.75]
[1757372480330,22.40282921,214.66,214.65,21.75]
[1757372480623,4.65829889,214.68,214.65,22.41]
[1757372480926,4.65829889,214.68,214.66,0.66]
[1757372481429,4.65829889,214.68,214.67,0.66]
[1757372481737,4.76052528,214.68,214.67,0.66]
[1757372483921,4.76052528,214.68,214.65,22.41]
[1757372484129,4.76052528,214.68,214.65,21.75]
[1757372484333,4.76052528,214.68,214.66,0.66]
[1757372485116,4.76052528,214.68,214.65,21.75]
[1757372485429,4.76052528,214.68,214.66,0.66]
[1757372486234,4.76052528,214.68,214.65,21.75]
[1757372486530,9.05606735,214.68,214.65,0.69]
[1757372486735,134.5,214.67,214.66,35.8]
[1757372488126,139.15831275,214.67,214.66,36.46]
[1757372488514,139.15831275,214.67,214.66,35.8]
[1757372489230,4.65831275,214.67,214.66,35.8]
[1757372489432,8.95385482,214.67,214.66,35.8]
[1757372489732,9.63385482,214.67,214.65,0.03]
[1757372489909,9.63385482,214.67,214.66,35.8]
[1757372489910,5.33831275,214.67,214.66,35.8]
[1757372490110,8.80909792,214.67,214.66,35.8]
[1757372491113,13.10463999,214.67,214.66,35.8]
[1757372491753,12.42463999,214.67,214.66,35.8]
[1757372493031,26.020234,214.67,214.66,35.8]
[1757372494831,26.700234,214.67,214.66,35.8]
[1757372495338,26.700234,214.67,214.65,0.03]
[1757372495339,13.59559401,214.66,214.65,0.03]
[1757372495513,21.36192125,214.66,214.65,35.83]
[1757372495922,21.36192125,214.66,214.65,36.49]
[1757372496120,21.36192125,214.66,214.65,35.83]
[1757372496622,21.36192125,214.66,214.65,36.49]
[1757372496937,26.02045101,214.66,214.65,36.49]
[1757372497137,8.12931493,214.66,214.65,36.49]
[1757372497525,4.65852976,214.66,214.65,36.49]
[1757372498931,4.65831275,214.67,214.65,36.49]
[1757372499137,4.65831275,214.67,214.66,0.66]
[1757372499350,8.12923754,214.67,214.66,0.66]
[1757372500645,8.12923754,214.67,214.65,35.83]
[1757372500950,3.47092479,214.66,214.65,35.83]
[1757372501445,3.47092479,214.66,214.65,36.49]
[1757372501646,8.22025249,214.66,214.65,36.49]
[1757372501819,26.77138857,214.66,214.65,0.03]
[1757372502023,26.77138857,214.66,214.65,35.83]
[1757372502224,26.11138857,214.66,214.65,35.83]
[1757372504343,24.56574091,214.66,214.65,35.83]
[1757372504925,8.22025249,214.66,214.65,35.83]
[1757372505134,8.22025249,214.66,214.65,36.49]
[1757372507326,10.9701469,214.66,214.65,35.83]
[1757372507523,10.9701469,214.66,214.65,36.49]
[1757372511351,8.22025249,214.66,214.65,36.49]
[1757372511651,3.56172273,214.66,214.65,36.49]
[1757372514447,8.22025249,214.66,214.65,36.49]
[1757372517726,8.22025249,214.66,214.65,35.83]
[1757372520153,21.8158465,214.66,214.65,0.03]
[1757372520361,21.8158465,214.66,214.65,35.83]
[1757372520738,8.22025249,214.66,214.65,36.49]
[1757372521131,8.22025249,214.66,214.65,35.83]
[1757372521341,8.22025249,214.66,214.65,0.03]
[1757372521342,8.88025249,214.66,214.65,0.03]
[1757372521541,10.9701469,214.66,214.65,35.83]
[1757372521857,11.06015224,214.66,214.65,35.83]
[1757372522231,24.65574625,214.66,214.65,35.83]
[1757372523349,24.56494831,214.66,214.65,35.83]
[1757372525155,21.8150539,214.66,214.65,35.83]
[1757372527845,8.21945989,214.66,214.65,36.49]
[1757372532368,8.21945989,214.66,214.65,35.83]
[1757372532669,8.21945989,214.66,214.65,36.53]